[Event "Titled Tuesday Blitz September 27 Late 2022"]
[White "Boyer, Mahel"]
[Black "Winterberg, Lukas"]
[WhiteFideId "45102422"]
[BlackFideId "24622702"]
[WhiteElo "2454"]
[BlackElo "2349"]
[Result "1/2-1/2"]
[Round "02"]
[TimeControl "180+1"]
[Date "2022.09.28"]
[WhiteClock "0:00:24"]
[BlackClock "0:00:32"]

1. e4 {[%clk 0:03:00]}  e6 {[%clk 0:02:57]} 2. Nf3 {[%clk 0:02:59]}  d5 {[%clk 0:02:56]} 3. Nc3 {[%clk 0:03:00]}  Nf6 {[%clk 0:02:54]} 4. Bd3 {[%clk 0:02:52]}  c5 {[%clk 0:02:49]} 5. O-O {[%clk 0:02:50]}  Nc6 {[%clk 0:02:49]} 6. Re1 {[%clk 0:02:47]}  Be7 {[%clk 0:02:47]} 7. exd5 {[%clk 0:02:34]}  exd5 {[%clk 0:02:38]} 8. Bb5 {[%clk 0:02:32]}  O-O {[%clk 0:02:34]} 9. Bxc6 {[%clk 0:02:20]}  bxc6 {[%clk 0:02:35]} 10. d3 {[%clk 0:02:20]}  Bg4 {[%clk 0:02:19]} 11. h3 {[%clk 0:02:13]}  Bh5 {[%clk 0:02:18]} 12. g4 {[%clk 0:02:13]}  Bg6 {[%clk 0:02:11]} 13. Ne5 {[%clk 0:02:11]}  Bd6 {[%clk 0:01:58]} 14. Bg5 {[%clk 0:01:50]}  Re8 {[%clk 0:01:27]} 15. f4 {[%clk 0:01:38]}  Bxe5 {[%clk 0:01:27]} 16. fxe5 {[%clk 0:01:37]}  Qc7 {[%clk 0:01:27]} 17. Bf4 {[%clk 0:00:46]}  Nd7 {[%clk 0:01:21]} 18. d4 {[%clk 0:00:42]}  cxd4 {[%clk 0:00:53]} 19. Qxd4 {[%clk 0:00:43]}  Nf8 {[%clk 0:00:53]} 20. Bg3 {[%clk 0:00:36]}  Ne6 {[%clk 0:00:52]} 21. Qf2 {[%clk 0:00:36]}  Qb6 {[%clk 0:00:45]} 22. Qxb6 {[%clk 0:00:20]}  axb6 {[%clk 0:00:46]} 23. Bf2 {[%clk 0:00:20]}  Bxc2 {[%clk 0:00:42]} 24. Rac1 {[%clk 0:00:16]}  Bg6 {[%clk 0:00:39]} 25. a4 {[%clk 0:00:16]}  Nf4 {[%clk 0:00:31]} 26. Rcd1 {[%clk 0:00:03]}  Nxh3+ {[%clk 0:00:29]} 27. Kg2 {[%clk 0:00:04]}  Nf4+ {[%clk 0:00:24]} 28. Kg3 {[%clk 0:00:04]}  Nd3 {[%clk 0:00:24]} 29. Re2 {[%clk 0:00:04]}  Nxe5 {[%clk 0:00:18]} 30. Bxb6 {[%clk 0:00:04]}  Nc4 {[%clk 0:00:16]} 31. Bd4 {[%clk 0:00:03]}  Rxe2 {[%clk 0:00:15]} 32. Nxe2 {[%clk 0:00:04]}  Bc2 {[%clk 0:00:14]} 33. Rc1 {[%clk 0:00:04]}  Bxa4 {[%clk 0:00:13]} 34. Ra1 {[%clk 0:00:05]}  Ra6 {[%clk 0:00:12]} 35. Nc3 {[%clk 0:00:05]}  Bb5 {[%clk 0:00:11]} 36. Re1 {[%clk 0:00:04]}  Ra8 {[%clk 0:00:11]} 37. b3 {[%clk 0:00:04]}  Nd6 {[%clk 0:00:10]} 38. Re7 {[%clk 0:00:05]}  Ne4+ {[%clk 0:00:10]} 39. Nxe4 {[%clk 0:00:05]}  dxe4 {[%clk 0:00:11]} 40. Rxe4 {[%clk 0:00:05]}  h6 {[%clk 0:00:12]} 41. b4 {[%clk 0:00:04]}  Ra3+ {[%clk 0:00:12]} 42. Kf4 {[%clk 0:00:03]}  Rb3 {[%clk 0:00:11]} 43. Bc5 {[%clk 0:00:03]}  Rd3 {[%clk 0:00:10]} 44. Re8+ {[%clk 0:00:03]}  Kh7 {[%clk 0:00:10]} 45. Re7 {[%clk 0:00:04]}  Kg6 {[%clk 0:00:10]} 46. Ke4 {[%clk 0:00:04]}  Rg3 {[%clk 0:00:10]} 47. Kf4 {[%clk 0:00:05]}  Rg2 {[%clk 0:00:10]} 48. Rc7 {[%clk 0:00:05]}  Rc2 {[%clk 0:00:10]} 49. Ke3 {[%clk 0:00:05]}  Rc4 {[%clk 0:00:11]} 50. Kf3 {[%clk 0:00:05]}  f6 {[%clk 0:00:11]} 51. Bf8 {[%clk 0:00:04]}  f5 {[%clk 0:00:11]} 52. Rxg7+ {[%clk 0:00:04]}  Kf6 {[%clk 0:00:11]} 53. gxf5 {[%clk 0:00:05]}  Kxf5 {[%clk 0:00:11]} 54. Rh7 {[%clk 0:00:06]}  Rc3+ {[%clk 0:00:11]} 55. Kf2 {[%clk 0:00:05]}  Rh3 {[%clk 0:00:11]} 56. Rxh6 {[%clk 0:00:05]}  Rxh6 {[%clk 0:00:10]} 57. Bxh6 {[%clk 0:00:06]}  Ke4 {[%clk 0:00:11]} 58. Bf8 {[%clk 0:00:06]}  Kd5 {[%clk 0:00:12]} 59. Bc5 {[%clk 0:00:07]}  Kc4 {[%clk 0:00:13]} 60. Ke3 {[%clk 0:00:07]}  Kc3 {[%clk 0:00:13]} 61. Ke4 {[%clk 0:00:08]}  Kb3 {[%clk 0:00:14]} 62. Ke5 {[%clk 0:00:09]}  Kc4 {[%clk 0:00:14]} 63. Kd6 {[%clk 0:00:10]}  Kb3 {[%clk 0:00:15]} 64. Kc7 {[%clk 0:00:10]}  Kc4 {[%clk 0:00:16]} 65. Kb6 {[%clk 0:00:11]}  Kb3 {[%clk 0:00:16]} 66. Ka5 {[%clk 0:00:12]}  Kc4 {[%clk 0:00:17]} 67. Kb6 {[%clk 0:00:12]}  Kb3 {[%clk 0:00:18]} 68. Ka7 {[%clk 0:00:13]}  Kc4 {[%clk 0:00:19]} 69. Kb8 {[%clk 0:00:14]}  Kb3 {[%clk 0:00:20]} 70. Kc8 {[%clk 0:00:15]}  Kc4 {[%clk 0:00:21]} 71. Kd8 {[%clk 0:00:15]}  Kb3 {[%clk 0:00:22]} 72. Ke7 {[%clk 0:00:16]}  Kc4 {[%clk 0:00:23]} 73. Kf6 {[%clk 0:00:17]}  Kb3 {[%clk 0:00:24]} 74. Ke5 {[%clk 0:00:18]}  Kc4 {[%clk 0:00:24]} 75. Kf4 {[%clk 0:00:19]}  Kb3 {[%clk 0:00:25]} 76. Ke3 {[%clk 0:00:20]}  Kc4 {[%clk 0:00:26]} 77. Kd2 {[%clk 0:00:20]}  Kb3 {[%clk 0:00:27]} 78. Kc1 {[%clk 0:00:21]}  Kc4 {[%clk 0:00:28]} 79. Kb2 {[%clk 0:00:22]}  Kd5 {[%clk 0:00:28]} 80. Kc3 {[%clk 0:00:23]}  Ba6 {[%clk 0:00:28]} 81. Kb3 {[%clk 0:00:22]}  Bb5 {[%clk 0:00:29]} 82. Bf8 {[%clk 0:00:21]}  Ba6 {[%clk 0:00:30]} 83. Ka4 {[%clk 0:00:22]}  Bb5+ {[%clk 0:00:31]} 84. Ka5 {[%clk 0:00:23]}  Kd4 {[%clk 0:00:32]} 85. Kb6 {[%clk 0:00:23]}  Kc4 {[%clk 0:00:32]} 86. Bc5 {[%clk 0:00:24]} 1/2-1/2


[Site "https://www.chess.com"]

[Event "Titled Tuesday Blitz September 27 Late 2022"]
[White "Carlsen, Magnus"]
[Black "Ozdemir, Serhan Berat"]
[WhiteFideId "1503014"]
[BlackFideId "6374611"]
[WhiteElo "2830"]
[BlackElo "1882"]
[Result "1-0"]
[Round "02"]
[TimeControl "180+1"]
[Date "2022.09.27"]
[WhiteClock "0:02:15"]
[BlackClock "0:00:03"]

1. a3 {[%clk 0:03:00]}  Nf6 {[%clk 0:02:53]} 2. d4 {[%clk 0:02:53]}  d5 {[%clk 0:02:53]} 3. Nf3 {[%clk 0:02:52]}  Bf5 {[%clk 0:02:44]} 4. c4 {[%clk 0:02:50]}  e6 {[%clk 0:02:42]} 5. Nc3 {[%clk 0:02:49]}  h6 {[%clk 0:02:40]} 6. Qb3 {[%clk 0:02:48]}  Qc8 {[%clk 0:02:32]} 7. cxd5 {[%clk 0:02:47]}  exd5 {[%clk 0:02:33]} 8. Nxd5 {[%clk 0:02:47]}  Nxd5 {[%clk 0:02:30]} 9. Qxd5 {[%clk 0:02:48]}  Nc6 {[%clk 0:02:22]} 10. e4 {[%clk 0:02:43]}  Be6 {[%clk 0:02:09]} 11. Qb5 {[%clk 0:02:43]}  a6 {[%clk 0:02:06]} 12. Qa4 {[%clk 0:02:43]}  b5 {[%clk 0:01:58]} 13. Qc2 {[%clk 0:02:43]}  Na5 {[%clk 0:01:45]} 14. d5 {[%clk 0:02:42]}  Bg4 {[%clk 0:01:39]} 15. Bd2 {[%clk 0:02:42]}  Nb7 {[%clk 0:01:31]} 16. Rc1 {[%clk 0:02:41]}  Bd6 {[%clk 0:01:25]} 17. e5 {[%clk 0:02:36]}  Bc5 {[%clk 0:01:06]} 18. Be3 {[%clk 0:02:24]}  Bf5 {[%clk 0:00:31]} 19. Bd3 {[%clk 0:02:22]}  Bxd3 {[%clk 0:00:28]} 20. Qxd3 {[%clk 0:02:23]}  Bxe3 {[%clk 0:00:28]} 21. fxe3 {[%clk 0:02:21]}  O-O {[%clk 0:00:25]} 22. O-O {[%clk 0:02:21]}  Qd7 {[%clk 0:00:23]} 23. e4 {[%clk 0:02:16]}  Rad8 {[%clk 0:00:03]} 24. Nd4 {[%clk 0:02:15]} 1-0


[Site "https://www.chess.com"]

[Event "Titled Tuesday Blitz September 27 Late 2022"]
[White "Dardha, Daniel"]
[Black "Ozates, Tuna"]
[WhiteFideId "240990"]
[BlackFideId "6354521"]
[WhiteElo "2528"]
[BlackElo "1887"]
[Result "0-1"]
[Round "02"]
[TimeControl "180+1"]
[Date "2022.09.28"]
[WhiteClock "0:00:04"]
[BlackClock "0:00:25"]

1. d4 {[%clk 0:03:00]}  Nf6 {[%clk 0:02:59]} 2. c4 {[%clk 0:03:01]}  e6 {[%clk 0:02:59]} 3. g3 {[%clk 0:03:01]}  d5 {[%clk 0:03:00]} 4. Bg2 {[%clk 0:03:00]}  Be7 {[%clk 0:03:00]} 5. Nc3 {[%clk 0:03:00]}  O-O {[%clk 0:03:00]} 6. Nf3 {[%clk 0:03:00]}  dxc4 {[%clk 0:02:59]} 7. Ne5 {[%clk 0:03:00]}  Nc6 {[%clk 0:02:57]} 8. Bxc6 {[%clk 0:03:00]}  bxc6 {[%clk 0:02:57]} 9. Nxc6 {[%clk 0:03:01]}  Qe8 {[%clk 0:02:58]} 10. Nxe7+ {[%clk 0:03:01]}  Qxe7 {[%clk 0:02:58]} 11. Qa4 {[%clk 0:03:02]}  c5 {[%clk 0:02:54]} 12. dxc5 {[%clk 0:03:01]}  Qxc5 {[%clk 0:02:53]} 13. Be3 {[%clk 0:03:01]}  Qc7 {[%clk 0:02:48]} 14. f3 {[%clk 0:03:00]}  Bd7 {[%clk 0:02:46]} 15. Qa3 {[%clk 0:02:59]}  Nd5 {[%clk 0:02:42]} 16. Nxd5 {[%clk 0:02:58]}  exd5 {[%clk 0:02:42]} 17. Kf2 {[%clk 0:02:57]}  Rfe8 {[%clk 0:02:41]} 18. Rhd1 {[%clk 0:02:56]}  Be6 {[%clk 0:02:32]} 19. Bd4 {[%clk 0:02:52]}  a5 {[%clk 0:02:31]} 20. Rd2 {[%clk 0:02:47]}  h5 {[%clk 0:02:31]} 21. Rad1 {[%clk 0:02:44]}  h4 {[%clk 0:02:30]} 22. Kg2 {[%clk 0:02:39]}  f6 {[%clk 0:02:14]} 23. Qc5 {[%clk 0:02:31]}  Qd7 {[%clk 0:01:57]} 24. Bc3 {[%clk 0:02:26]}  Kf7 {[%clk 0:01:51]} 25. Qd4 {[%clk 0:02:14]}  hxg3 {[%clk 0:01:46]} 26. hxg3 {[%clk 0:02:15]}  Rh8 {[%clk 0:01:46]} 27. Qf4 {[%clk 0:01:38]}  Rh5 {[%clk 0:01:42]} 28. Rh1 {[%clk 0:01:34]}  Rxh1 {[%clk 0:01:36]} 29. Kxh1 {[%clk 0:01:35]}  Rh8+ {[%clk 0:01:36]} 30. Kg1 {[%clk 0:01:34]}  Qe7 {[%clk 0:01:07]} 31. g4 {[%clk 0:01:27]}  g5 {[%clk 0:01:03]} 32. Qg3 {[%clk 0:00:59]}  Kg6 {[%clk 0:00:59]} 33. Kf2 {[%clk 0:00:56]}  Rh1 {[%clk 0:00:54]} 34. Bd4 {[%clk 0:00:40]}  Qh7 {[%clk 0:00:53]} 35. Rc2 {[%clk 0:00:34]}  Rd1 {[%clk 0:00:50]} 36. Ke3 {[%clk 0:00:24]}  Rxd4 {[%clk 0:00:44]} 37. Qd6 {[%clk 0:00:16]}  Qa7 {[%clk 0:00:44]} 38. Kf2 {[%clk 0:00:09]}  Rd2+ {[%clk 0:00:34]} 39. Kf1 {[%clk 0:00:01]}  Rxc2 {[%clk 0:00:26]} 40. Qxe6 {[%clk 0:00:02]}  Rc1+ {[%clk 0:00:26]} 41. Kg2 {[%clk 0:00:02]}  Qg1+ {[%clk 0:00:24]} 42. Kh3 {[%clk 0:00:02]}  Qh1+ {[%clk 0:00:24]} 43. Kg3 {[%clk 0:00:03]}  Rg1+ {[%clk 0:00:24]} 44. Kf2 {[%clk 0:00:03]}  Qh2+ {[%clk 0:00:24]} 45. Ke3 {[%clk 0:00:04]}  Qe5+ {[%clk 0:00:24]} 46. Qxe5 {[%clk 0:00:04]}  fxe5 {[%clk 0:00:25]} 47. Kf2 {[%clk 0:00:04]}  Rb1 {[%clk 0:00:25]} 0-1


[Site "https://www.chess.com"]

[Event "Titled Tuesday Blitz September 27 Late 2022"]
[White "De La Colina, Nicolas"]
[Black "Bacrot, Etienne"]
[WhiteFideId "30946921"]
[BlackFideId "605506"]
[WhiteElo "2046"]
[BlackElo "2666"]
[Result "0-1"]
[Round "02"]
[TimeControl "180+1"]
[Date "2022.09.27"]
[WhiteClock "0:00:02"]
[BlackClock "0:00:40"]

1. e4 {[%clk 0:03:00]}  c5 {[%clk 0:02:59]} 2. c3 {[%clk 0:03:00]}  Nf6 {[%clk 0:02:59]} 3. e5 {[%clk 0:03:00]}  Nd5 {[%clk 0:02:59]} 4. Nf3 {[%clk 0:03:01]}  Nc6 {[%clk 0:02:59]} 5. d4 {[%clk 0:03:01]}  cxd4 {[%clk 0:03:00]} 6. Bc4 {[%clk 0:03:02]}  Nb6 {[%clk 0:02:59]} 7. Bb3 {[%clk 0:03:02]}  d5 {[%clk 0:03:00]} 8. exd6 {[%clk 0:03:02]}  Qxd6 {[%clk 0:02:59]} 9. O-O {[%clk 0:03:02]}  Be6 {[%clk 0:02:58]} 10. Na3 {[%clk 0:03:00]}  Bxb3 {[%clk 0:02:53]} 11. Qxb3 {[%clk 0:03:01]}  Qd5 {[%clk 0:02:51]} 12. Nb5 {[%clk 0:02:53]}  Qxb3 {[%clk 0:02:44]} 13. axb3 {[%clk 0:02:54]}  Kd7 {[%clk 0:02:44]} 14. Nbxd4 {[%clk 0:02:45]}  Nxd4 {[%clk 0:02:44]} 15. Nxd4 {[%clk 0:02:46]}  e5 {[%clk 0:02:41]} 16. Nf3 {[%clk 0:02:41]}  f6 {[%clk 0:02:39]} 17. Be3 {[%clk 0:02:40]}  Kc6 {[%clk 0:02:37]} 18. Rfd1 {[%clk 0:02:27]}  Bc5 {[%clk 0:02:30]} 19. Bxc5 {[%clk 0:02:14]}  Kxc5 {[%clk 0:02:31]} 20. Ra5+ {[%clk 0:02:14]}  Kc6 {[%clk 0:02:32]} 21. b4 {[%clk 0:02:14]}  Nd7 {[%clk 0:02:29]} 22. Rad5 {[%clk 0:02:09]}  Rad8 {[%clk 0:02:27]} 23. Rd6+ {[%clk 0:01:50]}  Kc7 {[%clk 0:02:26]} 24. Kf1 {[%clk 0:01:39]}  Nb6 {[%clk 0:02:13]} 25. Rxd8 {[%clk 0:01:39]}  Rxd8 {[%clk 0:02:14]} 26. Ra1 {[%clk 0:01:26]}  a6 {[%clk 0:02:03]} 27. Ke2 {[%clk 0:01:24]}  Nc4 {[%clk 0:02:03]} 28. b3 {[%clk 0:01:18]}  Nd6 {[%clk 0:02:03]} 29. Nd2 {[%clk 0:01:01]}  h5 {[%clk 0:01:56]} 30. f3 {[%clk 0:00:52]}  h4 {[%clk 0:01:55]} 31. Ne4 {[%clk 0:00:47]}  Nxe4 {[%clk 0:01:47]} 32. fxe4 {[%clk 0:00:48]}  Kc6 {[%clk 0:01:47]} 33. Ke3 {[%clk 0:00:42]}  Rd6 {[%clk 0:01:42]} 34. h3 {[%clk 0:00:31]}  Kd7 {[%clk 0:01:42]} 35. Ke2 {[%clk 0:00:30]}  Ke6 {[%clk 0:01:43]} 36. Ra5 {[%clk 0:00:19]}  g6 {[%clk 0:01:33]} 37. b5 {[%clk 0:00:17]}  f5 {[%clk 0:01:26]} 38. exf5+ {[%clk 0:00:18]}  gxf5 {[%clk 0:01:25]} 39. bxa6 {[%clk 0:00:19]}  bxa6 {[%clk 0:01:25]} 40. b4 {[%clk 0:00:18]}  Kf6 {[%clk 0:01:14]} 41. c4 {[%clk 0:00:17]}  e4 {[%clk 0:01:14]} 42. c5 {[%clk 0:00:17]}  Re6 {[%clk 0:01:14]} 43. b5 {[%clk 0:00:14]}  axb5 {[%clk 0:01:11]} 44. Rxb5 {[%clk 0:00:14]}  Rc6 {[%clk 0:01:08]} 45. Ke3 {[%clk 0:00:04]}  Ke5 {[%clk 0:01:08]} 46. Ra5 {[%clk 0:00:05]}  f4+ {[%clk 0:01:08]} 47. Ke2 {[%clk 0:00:05]}  Kd4 {[%clk 0:01:04]} 48. Ra4+ {[%clk 0:00:05]}  Kd5 {[%clk 0:01:04]} 49. Ra8 {[%clk 0:00:02]}  Rg6 {[%clk 0:01:02]} 50. Rd8+ {[%clk 0:00:02]}  Kxc5 {[%clk 0:01:01]} 51. Kf2 {[%clk 0:00:03]}  Rf6 {[%clk 0:00:58]} 52. Re8 {[%clk 0:00:02]}  Kd5 {[%clk 0:00:58]} 53. Rh8 {[%clk 0:00:03]}  e3+ {[%clk 0:00:46]} 54. Ke2 {[%clk 0:00:02]}  Ra6 {[%clk 0:00:45]} 55. Rxh4 {[%clk 0:00:02]}  Ke4 {[%clk 0:00:46]} 56. Rh8 {[%clk 0:00:01]}  Ra2+ {[%clk 0:00:46]} 57. Ke1 {[%clk 0:00:02]}  Rxg2 {[%clk 0:00:41]} 58. h4 {[%clk 0:00:02]}  Kf3 {[%clk 0:00:41]} 59. Kd1 {[%clk 0:00:02]}  e2+ {[%clk 0:00:40]} 60. Kd2 {[%clk 0:00:02]}  Kf2 {[%clk 0:00:41]} 61. Re8 {[%clk 0:00:01]}  f3 {[%clk 0:00:41]} 62. Re3 {[%clk 0:00:02]}  Rg1 {[%clk 0:00:40]} 63. h5 {[%clk 0:00:01]}  Rd1+ {[%clk 0:00:40]} 64. Kc2 {[%clk 0:00:02]}  Kxe3 {[%clk 0:00:40]} 0-1


[Site "https://www.chess.com"]

[Event "Titled Tuesday Blitz September 27 Late 2022"]
[White "Fernandez De La Vara, Arnaldo"]
[Black "Bluebaum, Matthias"]
[WhiteFideId "3518388"]
[BlackFideId "24651516"]
[WhiteElo "2387"]
[BlackElo "2633"]
[Result "0-1"]
[Round "02"]
[TimeControl "180+1"]
[Date "2022.09.27"]
[WhiteClock "0:00:08"]
[BlackClock "0:00:50"]

1. Nf3 {[%clk 0:03:00]}  d5 {[%clk 0:03:00]} 2. b3 {[%clk 0:03:00]}  Bg4 {[%clk 0:03:00]} 3. Bb2 {[%clk 0:03:00]}  Nd7 {[%clk 0:03:00]} 4. g3 {[%clk 0:03:00]}  e6 {[%clk 0:03:00]} 5. Bg2 {[%clk 0:03:00]}  Ngf6 {[%clk 0:03:00]} 6. O-O {[%clk 0:03:01]}  Bd6 {[%clk 0:03:01]} 7. d3 {[%clk 0:03:01]}  O-O {[%clk 0:03:01]} 8. h3 {[%clk 0:03:00]}  Bh5 {[%clk 0:03:01]} 9. Nbd2 {[%clk 0:03:00]}  Qe7 {[%clk 0:03:01]} 10. a4 {[%clk 0:02:58]}  c6 {[%clk 0:02:59]} 11. e4 {[%clk 0:02:58]}  dxe4 {[%clk 0:03:00]} 12. dxe4 {[%clk 0:02:57]}  Be5 {[%clk 0:02:55]} 13. Ba3 {[%clk 0:02:38]}  c5 {[%clk 0:02:54]} 14. Rb1 {[%clk 0:02:37]}  Bc3 {[%clk 0:02:50]} 15. g4 {[%clk 0:02:23]}  Bg6 {[%clk 0:02:45]} 16. Qe2 {[%clk 0:02:22]}  a6 {[%clk 0:02:21]} 17. Bb2 {[%clk 0:01:48]}  Bxb2 {[%clk 0:02:20]} 18. Rxb2 {[%clk 0:01:49]}  Rfd8 {[%clk 0:02:19]} 19. Rbb1 {[%clk 0:01:27]}  e5 {[%clk 0:02:15]} 20. Ne1 {[%clk 0:00:47]}  Ne8 {[%clk 0:02:13]} 21. Nd3 {[%clk 0:00:45]}  Nc7 {[%clk 0:02:13]} 22. Nc4 {[%clk 0:00:34]}  Ne6 {[%clk 0:02:08]} 23. Qe3 {[%clk 0:00:35]}  f6 {[%clk 0:02:05]} 24. a5 {[%clk 0:00:24]}  Bf7 {[%clk 0:02:02]} 25. c3 {[%clk 0:00:23]}  Ndf8 {[%clk 0:02:00]} 26. Nb6 {[%clk 0:00:19]}  Rab8 {[%clk 0:01:59]} 27. Nd5 {[%clk 0:00:19]}  Qe8 {[%clk 0:01:59]} 28. b4 {[%clk 0:00:19]}  c4 {[%clk 0:01:59]} 29. Nc5 {[%clk 0:00:19]}  Ng6 {[%clk 0:01:57]} 30. Nxe6 {[%clk 0:00:15]}  Bxe6 {[%clk 0:01:58]} 31. f4 {[%clk 0:00:10]}  Bxd5 {[%clk 0:01:58]} 32. exd5 {[%clk 0:00:08]}  Nxf4 {[%clk 0:01:59]} 33. Be4 {[%clk 0:00:04]}  Nxd5 {[%clk 0:01:59]} 34. Qc5 {[%clk 0:00:04]}  Nf4 {[%clk 0:01:58]} 35. Qxc4+ {[%clk 0:00:05]}  Kh8 {[%clk 0:01:57]} 36. Bc2 {[%clk 0:00:06]}  Rbc8 {[%clk 0:01:53]} 37. Qe4 {[%clk 0:00:06]}  g6 {[%clk 0:01:54]} 38. Rf3 {[%clk 0:00:07]}  Qf7 {[%clk 0:01:49]} 39. Re1 {[%clk 0:00:07]}  Rc4 {[%clk 0:01:49]} 40. Qe3 {[%clk 0:00:07]}  Qc7 {[%clk 0:01:46]} 41. g5 {[%clk 0:00:06]}  fxg5 {[%clk 0:01:38]} 42. Bb3 {[%clk 0:00:07]}  Rc6 {[%clk 0:01:37]} 43. Qxe5+ {[%clk 0:00:07]}  Qxe5 {[%clk 0:01:38]} 44. Rxe5 {[%clk 0:00:07]}  h6 {[%clk 0:01:34]} 45. h4 {[%clk 0:00:08]}  Rd3 {[%clk 0:00:52]} 46. Rxd3 {[%clk 0:00:08]}  Nxd3 {[%clk 0:00:53]} 47. Re8+ {[%clk 0:00:08]}  Kg7 {[%clk 0:00:54]} 48. hxg5 {[%clk 0:00:09]}  hxg5 {[%clk 0:00:54]} 49. Re7+ {[%clk 0:00:10]}  Kf6 {[%clk 0:00:55]} 50. Rf7+ {[%clk 0:00:10]}  Ke5 {[%clk 0:00:55]} 51. Rxb7 {[%clk 0:00:11]}  Rxc3 {[%clk 0:00:55]} 52. Bf7 {[%clk 0:00:10]}  Rc1+ {[%clk 0:00:51]} 53. Kh2 {[%clk 0:00:10]}  Nf4 {[%clk 0:00:50]} 54. b5 {[%clk 0:00:09]}  Rc2+ {[%clk 0:00:49]} 55. Kg3 {[%clk 0:00:08]}  Rg2+ {[%clk 0:00:48]} 56. Kf3 {[%clk 0:00:08]}  g4+ {[%clk 0:00:49]} 57. Ke3 {[%clk 0:00:08]}  Re2# {[%clk 0:00:50]} 0-1


[Site "https://www.chess.com"]

[Event "Titled Tuesday Blitz September 27 Late 2022"]
[White "Gheorghiu, Calin"]
[Black "Gokerkan, Cem Kaan"]
[WhiteFideId "1200305"]
[BlackFideId "6336760"]
[WhiteElo "2168"]
[BlackElo "2364"]
[Result "0-1"]
[Round "02"]
[TimeControl "180+1"]
[Date "2022.09.28"]
[WhiteClock "0:00:09"]
[BlackClock "0:00:29"]

1. d4 {[%clk 0:02:59]}  Nf6 {[%clk 0:02:59]} 2. Bf4 {[%clk 0:02:59]}  c5 {[%clk 0:02:58]} 3. e3 {[%clk 0:02:56]}  Qb6 {[%clk 0:02:56]} 4. Nc3 {[%clk 0:02:51]}  d6 {[%clk 0:02:47]} 5. Bb5+ {[%clk 0:02:40]}  Bd7 {[%clk 0:02:46]} 6. a4 {[%clk 0:02:40]}  Nc6 {[%clk 0:02:06]} 7. d5 {[%clk 0:02:32]}  Na5 {[%clk 0:02:05]} 8. Nf3 {[%clk 0:02:27]}  a6 {[%clk 0:02:04]} 9. Bxd7+ {[%clk 0:02:17]}  Nxd7 {[%clk 0:02:05]} 10. O-O {[%clk 0:02:03]}  Qxb2 {[%clk 0:02:01]} 11. Qd2 {[%clk 0:01:51]}  Qb6 {[%clk 0:01:51]} 12. Rab1 {[%clk 0:01:51]}  Qc7 {[%clk 0:01:50]} 13. e4 {[%clk 0:01:47]}  g6 {[%clk 0:01:35]} 14. Bh6 {[%clk 0:01:33]}  Nc4 {[%clk 0:01:21]} 15. Qg5 {[%clk 0:01:32]}  Nde5 {[%clk 0:00:59]} 16. Nxe5 {[%clk 0:01:29]}  Nxe5 {[%clk 0:00:59]} 17. f4 {[%clk 0:01:28]}  Nc4 {[%clk 0:00:52]} 18. Bxf8 {[%clk 0:01:11]}  Rxf8 {[%clk 0:00:53]} 19. e5 {[%clk 0:00:44]}  O-O-O {[%clk 0:00:50]} 20. e6 {[%clk 0:00:40]}  Nd2 {[%clk 0:00:41]} 21. f5 {[%clk 0:00:35]}  Nxb1 {[%clk 0:00:39]} 22. Rxb1 {[%clk 0:00:32]}  gxf5 {[%clk 0:00:39]} 23. Qxf5 {[%clk 0:00:31]}  fxe6 {[%clk 0:00:39]} 24. Qxe6+ {[%clk 0:00:31]}  Qd7 {[%clk 0:00:38]} 25. Qe3 {[%clk 0:00:25]}  Rf5 {[%clk 0:00:37]} 26. Ne4 {[%clk 0:00:20]}  Rdf8 {[%clk 0:00:35]} 27. Qb3 {[%clk 0:00:16]}  Rf4 {[%clk 0:00:31]} 28. Nd2 {[%clk 0:00:13]}  Rb4 {[%clk 0:00:30]} 29. Qd3 {[%clk 0:00:11]}  Rxb1+ {[%clk 0:00:29]} 30. Nxb1 {[%clk 0:00:12]}  Qxa4 {[%clk 0:00:30]} 31. h3 {[%clk 0:00:09]}  Qd4+ {[%clk 0:00:29]} 0-1


[Site "https://www.chess.com"]

[Event "Titled Tuesday Blitz September 27 Late 2022"]
[White "Guzman, Christopher"]
[Black "Paravyan, David"]
[WhiteFideId "6405096"]
[BlackFideId "4194985"]
[WhiteElo "2244"]
[BlackElo "2555"]
[Result "0-1"]
[Round "02"]
[TimeControl "180+1"]
[Date "2022.09.27"]
[WhiteClock "0:00:26"]
[BlackClock "0:00:13"]

1. e4 {[%clk 0:03:00]}  e5 {[%clk 0:02:59]} 2. Nf3 {[%clk 0:03:00]}  Nf6 {[%clk 0:03:00]} 3. Nxe5 {[%clk 0:02:59]}  d6 {[%clk 0:03:00]} 4. Nf3 {[%clk 0:02:59]}  Nxe4 {[%clk 0:03:01]} 5. Nc3 {[%clk 0:03:00]}  Nxc3 {[%clk 0:03:00]} 6. dxc3 {[%clk 0:03:01]}  Be7 {[%clk 0:03:01]} 7. Be3 {[%clk 0:03:01]}  O-O {[%clk 0:03:02]} 8. Qd2 {[%clk 0:03:02]}  Nd7 {[%clk 0:03:03]} 9. O-O-O {[%clk 0:03:02]}  Nf6 {[%clk 0:03:03]} 10. Bd3 {[%clk 0:03:01]}  Re8 {[%clk 0:03:04]} 11. Ng5 {[%clk 0:03:00]}  h6 {[%clk 0:02:56]} 12. h4 {[%clk 0:02:58]}  d5 {[%clk 0:02:36]} 13. f3 {[%clk 0:02:51]}  c5 {[%clk 0:02:27]} 14. Qf2 {[%clk 0:02:38]}  Qa5 {[%clk 0:02:20]} 15. Kb1 {[%clk 0:02:36]}  c4 {[%clk 0:02:00]} 16. Be2 {[%clk 0:02:22]}  b5 {[%clk 0:02:00]} 17. g4 {[%clk 0:02:20]}  b4 {[%clk 0:01:43]} 18. Bd4 {[%clk 0:02:19]}  Rb8 {[%clk 0:01:40]} 19. cxb4 {[%clk 0:02:06]}  Qxb4 {[%clk 0:01:40]} 20. Nh3 {[%clk 0:01:59]}  Bc5 {[%clk 0:01:08]} 21. Rhe1 {[%clk 0:01:38]}  c3 {[%clk 0:01:01]} 22. b3 {[%clk 0:01:18]}  Qa3 {[%clk 0:01:02]} 23. Bxc3 {[%clk 0:01:17]}  Bxf2 {[%clk 0:01:01]} 24. Nxf2 {[%clk 0:01:17]}  Be6 {[%clk 0:01:00]} 25. g5 {[%clk 0:01:16]}  Rec8 {[%clk 0:01:00]} 26. Bb2 {[%clk 0:01:16]}  Qc5 {[%clk 0:01:01]} 27. gxf6 {[%clk 0:01:11]}  Qxf2 {[%clk 0:00:56]} 28. Bd3 {[%clk 0:01:10]}  g6 {[%clk 0:00:46]} 29. h5 {[%clk 0:01:05]}  Bf5 {[%clk 0:00:41]} 30. Bxf5 {[%clk 0:00:56]}  gxf5 {[%clk 0:00:40]} 31. Rg1+ {[%clk 0:00:56]}  Kh8 {[%clk 0:00:37]} 32. Be5 {[%clk 0:00:40]}  Qxc2+ {[%clk 0:00:30]} 33. Ka1 {[%clk 0:00:40]}  Rxb3 {[%clk 0:00:25]} 34. axb3 {[%clk 0:00:38]}  Rc6 {[%clk 0:00:26]} 35. Rd4 {[%clk 0:00:34]}  Ra6+ {[%clk 0:00:22]} 36. Ra4 {[%clk 0:00:33]}  Rxa4+ {[%clk 0:00:22]} 37. bxa4 {[%clk 0:00:34]}  Qxa4+ {[%clk 0:00:22]} 38. Kb1 {[%clk 0:00:34]}  d4 {[%clk 0:00:15]} 39. Bf4 {[%clk 0:00:28]}  Qb3+ {[%clk 0:00:13]} 40. Kc1 {[%clk 0:00:27]}  Qc3+ {[%clk 0:00:13]} 41. Kb1 {[%clk 0:00:26]}  Qb3+ {[%clk 0:00:13]} 42. Kc1 {[%clk 0:00:26]}  d3 {[%clk 0:00:13]} 43. Rg2 {[%clk 0:00:25]}  Qc4+ {[%clk 0:00:13]} 44. Kd2 {[%clk 0:00:25]}  Qxf4+ {[%clk 0:00:13]} 45. Kxd3 {[%clk 0:00:26]}  Qxf3+ {[%clk 0:00:13]} 0-1


[Site "https://www.chess.com"]